bitfinex-derivatives/quotes_BNBF0:USTF0_20250329
["timestamp","ask_amount","ask_price","bid_price","bid_amount"]
[1743241177356,5.92030904,604.82,604.64,0.28531612]
[1743241177557,5.92030904,604.81,604.63,0.28531612]
[1743241177754,5.92030904,604.8,604.64,0.28531612]
[1743241177957,3.75848515,604.79,604.63,0.28531612]
[1743241178152,3.75848515,604.78,604.64,0.28531612]
[1743241178357,2.27704194,604.77,604.63,0.28531612]
[1743241178555,0.92590201,604.76,604.63,0.28531612]
[1743241178755,1.06024285,604.77,604.63,0.28531612]
[1743241178954,0.92726603,604.76,604.63,0.28531612]
[1743241179152,0.92726603,604.75,604.62,0.33078627]
[1743241179354,0.92737733,604.74,604.62,0.33078627]
[1743241179557,1.06024285,604.76,604.62,0.33078627]
[1743241179856,2.27938371,604.75,604.62,0.33078627]
[1743241180056,0.92738334,604.74,604.62,0.33078627]
[1743241180261,0.92747532,604.73,604.62,0.33078627]
[1743241180456,1.06024285,604.76,604.62,0.33078627]
[1743241180657,1.06024285,604.72,604.62,0.33078627]
[1743241181461,1.61843825,605.09,604.62,0.33078627]
[1743241181657,6.42333862,605.08,604.62,0.33078627]
[1743241181860,6.42333862,605.07,604.62,0.33078627]
[1743241182063,1.61843825,605.09,604.62,0.33078627]
[1743241182064,6.42333862,605.06,604.62,0.33078627]
[1743241182268,6.42333862,605.05,604.62,0.33078627]
[1743241182467,6.42333862,605.04,604.62,0.33078627]
[1743241182668,6.42333862,605.03,604.62,0.33078627]
[1743241182861,6.42333862,605.02,604.62,0.33078627]
[1743241183065,6.42333862,605.01,604.62,0.33078627]
[1743241183368,6.42333862,605.0,604.62,0.33078627]
[1743241183568,6.42333862,604.99,604.62,0.33078627]
[1743241183767,2.76144087,605.01,604.62,0.33078627]
[1743241183768,6.42333862,604.98,604.62,0.33078627]
[1743241183968,6.42333862,604.97,604.62,0.33078627]
[1743241184168,6.42333862,604.96,604.62,0.33078627]
[1743241184362,6.42333862,604.95,604.62,0.33078627]
[1743241184569,6.42333862,604.94,604.62,0.33078627]
[1743241184763,6.42333862,604.93,604.63,0.28536408]
[1743241184968,6.42333862,604.92,604.63,0.28536408]
[1743241185164,6.42333862,604.91,604.63,0.28536408]
[1743241185365,6.42333862,604.9,604.63,0.28536408]
[1743241185568,6.42333862,604.89,604.63,0.28536408]
[1743241185767,6.42333862,604.88,604.63,0.28536408]
[1743241185974,6.42333862,604.87,604.63,0.28536408]
[1743241186171,6.42333862,604.86,604.63,0.28536408]
[1743241186371,6.42333862,604.85,604.63,0.28536408]
[1743241186573,6.42333862,604.84,604.63,0.28536408]
[1743241186774,6.42333862,604.83,604.63,0.28536408]
[1743241186969,6.42333862,604.82,604.63,0.28536408]
[1743241187166,6.42333862,604.81,604.63,0.28536408]
[1743241187367,6.42333862,604.8,604.63,0.28536408]
[1743241187569,5.92744441,604.79,604.63,0.28536408]
[1743241187774,5.92744441,604.78,604.63,0.28536408]
[1743241187974,5.92744441,604.77,604.63,0.28536408]
[1743241188173,5.92744441,604.76,604.63,0.28536408]
[1743241188371,3.76383238,604.75,604.63,0.28536408]
[1743241188573,3.76383238,604.74,604.63,0.28536408]
[1743241188775,2.27978631,604.73,604.63,0.28536408]
[1743241188976,2.27978631,604.72,604.63,0.28536408]
[1743241189172,2.27978631,604.71,604.63,0.28536408]
[1743241189378,2.27978631,604.7,604.63,0.28536408]
[1743241189573,0.92752879,604.69,604.62,1.56391783]
[1743241189781,0.92752879,604.68,604.64,0.28535512]
[1743241189977,1.06209264,604.71,604.65,0.28535512]
[1743241190174,2.2805379,604.7,604.63,0.28535512]
[1743241190373,1.06209264,604.71,604.64,0.28535512]
[1743241190374,0.92783448,604.69,604.64,0.28535512]
[1743241190577,0.92783448,604.68,604.65,0.28535512]
[1743241190775,1.06209264,604.69,604.66,0.28535512]
[1743241190984,0.92788071,604.68,604.63,1.51848668]
[1743241191177,1.06209264,604.69,604.64,0.28535512]
[1743241191378,0.92790165,604.68,604.64,0.28535512]
[1743241191578,0.92790165,604.67,604.64,0.28535512]
[1743241191779,0.92775512,604.66,604.64,0.28535512]
[1743241192074,0.97161679,604.95,604.64,0.28535512]
[1743241192380,9.01473161,604.94,604.64,0.28535512]
[1743241192576,6.42467657,604.93,604.64,0.28535512]
[1743241192783,6.42467657,604.92,604.64,0.28535512]
[1743241193082,9.1869022,604.91,604.64,0.28535512]
[1743241193279,6.42467657,604.9,604.64,0.28535512]
[1743241193580,6.42467657,604.89,604.64,0.28535512]
[1743241193782,2.90802887,604.88,604.64,0.28535512]
[1743241193984,6.42533233,604.87,604.65,0.28535512]
[1743241194182,6.42533233,604.86,604.63,0.28535512]
[1743241194382,5.92941849,604.85,604.63,0.28535512]
[1743241194681,3.76492405,604.84,604.63,0.28535512]
[1743241194881,3.76492405,604.83,604.63,0.28535512]
[1743241195081,2.28054557,604.82,604.63,0.28535512]
[1743241195274,2.28054557,604.81,604.63,0.28535512]
[1743241195476,2.28054557,604.8,604.63,0.28535512]
[1743241195687,2.28054557,604.79,604.63,0.28535512]
[1743241195878,2.28054557,604.78,604.63,0.28535512]
[1743241196079,2.28054557,604.77,604.63,0.28535512]
[1743241196281,2.28054557,604.76,604.63,0.28535512]
[1743241196580,2.28101857,604.75,604.64,0.28531704]
[1743241196886,0.92773655,604.74,604.65,0.28531704]
[1743241197088,0.92773655,604.73,604.63,0.28531704]
[1743241197282,1.06239447,604.75,604.64,0.28531704]
[1743241197481,1.06239447,604.72,604.63,0.28531704]
[1743241198082,1.61843825,605.06,604.63,0.28531704]
[1743241198287,6.42822119,605.05,604.63,0.28531704]
[1743241198585,6.42822119,605.04,604.63,0.28531704]
[1743241198786,6.42822119,605.03,604.63,0.28531704]
[1743241198984,6.42822119,605.02,604.63,0.28531704]
[1743241199186,6.42822119,605.01,604.63,0.28531704]
[1743241199484,6.42822119,605.0,604.63,0.28531704]
[1743241199689,6.42822119,604.99,604.63,0.28531704]
[1743241199889,6.42851606,604.98,604.63,0.28531704]
[1743241200087,6.42851606,604.97,604.63,0.28531704]
[1743241200283,6.42851606,604.96,604.63,0.28531704]
[1743241200490,5.93268215,604.95,604.63,0.28531704]
[1743241200788,5.93268215,604.94,604.62,0.33078627]
[1743241201089,5.93268215,604.93,604.62,0.33078627]
[1743241201290,5.93268215,604.92,604.62,0.33078627]
[1743241201484,5.93268215,604.91,604.62,0.33078627]
[1743241201685,5.93268215,604.9,604.62,0.33078627]
[1743241201886,5.93268215,604.89,604.62,0.33078627]
[1743241202092,5.93268215,604.88,604.62,0.33078627]
[1743241202291,3.76726017,604.87,604.62,0.33078627]
[1743241202591,5.04572464,604.86,604.62,0.33078627]
[1743241202790,2.28180083,604.85,604.62,0.33078627]
[1743241202994,2.28180083,604.84,604.62,0.33078627]
[1743241203194,2.28180083,604.83,604.62,0.33078627]
[1743241203392,2.2822987,604.82,604.62,0.33078627]
[1743241203691,0.92841209,604.81,604.62,0.33078627]
[1743241203888,1.06304762,604.83,604.62,0.33078627]
[1743241204088,1.06304762,604.81,604.62,0.33078627]
[1743241204591,2.28172827,604.8,604.62,0.33078627]
[1743241204890,0.92831579,604.79,604.62,0.33078627]
[1743241205187,0.92831579,604.78,604.62,0.33078627]
[1743241205392,1.06304762,604.8,604.62,0.33078627]
[1743241205393,0.92827008,604.77,604.62,0.33078627]
[1743241205698,1.06304762,604.77,604.63,0.28532925]
[1743241206392,2.59365812,605.11,604.63,0.28532925]
[1743241206589,7.40411645,605.1,604.63,0.28532925]
[1743241206894,1.62514308,604.97,604.63,0.28532925]
[1743241207093,0.97521987,604.95,604.63,0.28532925]
[1743241207294,0.97521987,604.93,604.63,0.28532925]
[1743241207495,6.42905968,604.92,604.63,0.28532925]
[1743241207691,6.42905968,604.91,604.63,0.28532925]
[1743241207890,6.42905968,604.9,604.63,0.28532925]
[1743241208089,6.42905968,604.89,604.63,0.28532925]
[1743241208291,6.42905968,604.88,604.63,0.28532925]
[1743241208489,0.97521987,604.86,604.63,0.28532925]
[1743241208789,0.97521987,604.82,604.63,0.28532925]
[1743241208995,7.40427955,604.81,604.63,0.28532925]
[1743241209194,6.42905968,604.8,604.63,0.28532925]
[1743241209393,6.42920544,604.79,604.62,0.33078627]
[1743241209595,6.42920544,604.78,604.62,0.33078627]
[1743241209790,6.42920544,604.77,604.62,0.33078627]
[1743241209995,6.42920544,604.76,604.62,0.33078627]
[1743241210189,6.42920544,604.75,604.62,0.33078627]
[1743241210395,6.42920544,604.74,604.62,0.33078627]
[1743241210589,6.42920544,604.73,604.62,0.33078627]
[1743241210793,6.42920544,604.72,604.62,0.33078627]
[1743241210998,6.42920544,604.71,604.62,0.33078627]
[1743241211295,6.42920544,604.7,604.62,0.33078627]
[1743241211488,6.42920544,604.69,604.62,0.33078627]
[1743241211694,6.42920544,604.68,604.62,0.33078627]
[1743241211992,6.42920544,604.67,604.62,0.33078627]
[1743241212193,6.42920544,604.66,604.62,0.33078627]
[1743241212393,5.93335681,604.65,604.62,0.33078627]
[1743241212593,5.93335681,604.64,604.62,0.33078627]
[1743241212790,5.93335681,604.63,604.62,0.33078627]
[1743241213396,5.92874756,604.63,604.62,0.33078627]
[1743241213596,8.69270325,604.63,604.62,0.33078627]
[1743241214398,7.20831864,604.63,604.62,0.33078627]
[1743241214996,3.69169607,604.63,604.62,0.33078627]
[1743241215194,2.76395569,604.63,604.62,0.33078627]
[1743241215403,1.06305988,604.63,604.62,0.33078627]
[1743241216495,1.61843825,604.98,604.62,0.33078627]
[1743241216701,6.42381618,604.97,604.62,0.33078627]
[1743241216895,6.42381618,604.96,604.62,0.33078627]
[1743241217095,5.07135725,604.95,604.62,0.33078627]
[1743241217607,2.90758631,604.95,604.62,0.33078627]
[1743241217998,1.98002475,604.94,604.62,0.33078627]
[1743241218198,2.76158171,604.96,604.62,0.33078627]
[1743241218703,6.42243391,604.95,604.62,0.33078627]
[1743241218898,6.42243391,604.94,604.62,0.33078627]
[1743241219098,6.42243391,604.93,604.62,0.33078627]
[1743241219301,2.76158171,604.96,604.62,0.33078627]
[1743241219302,6.42243391,604.92,604.62,0.33078627]
[1743241219502,6.42243391,604.91,604.62,0.33078627]
[1743241219701,6.42243391,604.9,604.62,0.33078627]
[1743241219899,6.42243391,604.89,604.62,0.33078627]
[1743241220203,8.12186881,604.88,604.62,0.33078627]
[1743241220402,6.42243391,604.87,604.62,0.33078627]
[1743241220603,6.42243391,604.86,604.62,0.33078627]
[1743241220801,6.42243391,604.85,604.62,0.33078627]
[1743241220997,6.42243391,604.84,604.62,0.33078627]
[1743241221204,6.42243391,604.83,604.62,0.33078627]
[1743241221397,6.42243391,604.82,604.62,0.33078627]
[1743241221699,6.42243391,604.81,604.62,0.33078627]
[1743241221896,6.42243391,604.8,604.62,0.33078627]
[1743241222097,6.42243391,604.79,604.62,0.33078627]
[1743241222298,6.42243391,604.78,604.62,0.33078627]
[1743241222498,9.18401562,604.77,604.62,0.33078627]
[1743241222698,6.42243391,604.76,604.62,0.33078627]
[1743241222898,6.42243391,604.75,604.62,0.33078627]
[1743241223099,6.42243391,604.74,604.62,0.33078627]
[1743241223302,2.76158171,604.77,604.62,0.33078627]
[1743241223303,6.42243391,604.73,604.62,0.33078627]
[1743241223505,6.42243391,604.72,604.62,0.33078627]
[1743241223807,6.42243391,604.71,604.62,0.33078627]
[1743241224098,6.42243391,604.7,604.62,0.33078627]
[1743241224303,6.41958027,604.69,604.62,0.33078627]
[1743241224502,2.76158171,604.7,604.62,0.33078627]
[1743241224503,6.41958027,604.68,604.62,0.33078627]
[1743241224702,2.76158171,604.7,604.62,0.33078627]
[1743241224703,6.41958027,604.67,604.62,0.33078627]
[1743241224902,6.41958027,604.66,604.63,0.2854274]
[1743241225104,6.41958027,604.65,604.63,0.2854274]
[1743241225307,5.9236461,604.64,604.63,0.2854274]
[1743241225601,5.9236461,604.64,604.63,0.28541576]
[1743241225806,8.68522781,604.64,604.63,0.28541576]
[1743241226606,8.68651615,604.64,604.63,0.28541576]
[1743241226807,8.68651408,604.64,604.63,0.28541576]
[1743241227206,9.18252833,604.64,604.62,0.33078627]
[1743241227408,5.92493237,604.63,604.62,0.33078627]
[1743241227609,5.92493237,604.63,604.62,0.61621496]
[1743241227807,9.18253467,604.63,604.62,0.61621496]
[1743241228103,8.68651408,604.63,604.62,0.61621496]
[1743241229507,6.52421618,604.63,604.62,0.61621496]
[1743241230308,6.52358407,604.63,604.62,0.61621496]
[1743241230505,6.98639745,604.63,604.62,0.61621496]
[1743241231303,7.48241493,604.63,604.62,0.61621496]
[1743241231504,7.48242482,604.63,604.62,0.61621496]
[1743241231708,9.18064894,604.63,604.62,0.61621496]
[1743241231907,9.18064894,604.63,604.62,0.28542869]
[1743241232106,9.18064894,604.63,604.43,0.28542869]
[1743241232311,6.42027801,604.62,604.42,1.23313156]
[1743241232510,6.42027801,604.61,604.43,0.28545941]
[1743241232706,6.42027801,604.6,604.43,0.28545941]
[1743241232907,5.92425064,604.59,604.41,0.28545941]
[1743241233111,5.92425064,604.58,604.41,0.28545941]
[1743241233312,8.68462157,604.57,604.41,0.28545941]
[1743241233513,5.92425064,604.56,604.41,0.28545941]
[1743241233712,5.92425064,604.55,604.41,0.28545941]
[1743241233912,3.76200236,604.54,604.41,0.28545941]
[1743241234113,2.27882014,604.53,604.41,0.28545941]
[1743241234415,2.27882014,604.52,604.4,1.23313156]
[1743241234707,2.27629377,604.51,604.4,1.23313156]
[1743241234908,5.91804019,604.5,604.4,1.23313156]
[1743241235114,5.91794837,604.49,604.26,1.23313156]
[1743241235309,4.99182444,604.48,604.27,0.28555855]
[1743241235512,5.48802781,604.47,604.27,0.28555855]
[1743241235709,5.48802781,604.46,604.27,0.28555855]
[1743241235913,5.48802781,604.46,604.26,1.23313156]
[1743241235914,5.91794837,604.45,604.26,1.23313156]
[1743241236111,5.91794837,604.44,604.26,1.23313156]
[1743241236309,5.91514858,604.43,604.26,1.23313156]
[1743241236509,5.91514858,604.42,604.26,1.23313156]
[1743241236709,2.27629377,604.41,604.26,1.23313156]
[1743241236912,2.27629377,604.4,604.26,1.23313156]
[1743241237114,2.27629377,604.39,604.26,1.23313156]
[1743241237310,2.27629377,604.38,604.26,1.23313156]
[1743241237514,2.27629377,604.37,604.26,1.23313156]
[1743241237714,2.27629377,604.36,604.26,1.23313156]
[1743241237915,2.27629377,604.35,604.26,1.23313156]
[1743241238117,2.27629377,604.34,604.26,1.23313156]
[1743241238318,2.27629377,604.34,603.99,1.23350027]
[1743241238319,2.27304326,604.33,604.04,0.28794241]
[1743241238512,2.27300929,604.32,604.04,0.28794241]
[1743241238718,2.27300929,604.31,604.05,0.28558963]
[1743241238915,2.27300929,604.3,604.05,0.28558963]
[1743241239112,1.06214681,604.31,604.05,0.28558963]
[1743241239314,1.06214681,604.31,604.06,0.61668256]
[1743241239516,1.61843825,604.6,604.07,0.28558963]
[1743241239711,6.39833263,604.59,604.07,0.28558963]
[1743241239918,7.37126382,604.58,604.07,0.28558963]
[1743241240112,6.39833263,604.57,604.07,0.28558963]
[1743241240314,6.39833263,604.56,604.07,0.28558963]
[1743241240516,6.39833263,604.55,604.07,0.28558963]
[1743241240718,9.14821043,604.54,604.07,0.28558963]
[1743241240912,6.3979094,604.53,604.06,0.33109293]
[1743241241117,5.90171949,604.52,604.07,0.28556713]
[1743241241415,3.74763859,604.51,604.07,0.28556713]
[1743241241612,5.90192425,604.5,604.07,0.28556713]
[1743241241913,8.65180205,604.49,604.07,0.28556713]
[1743241242216,5.90192425,604.48,604.07,0.28556713]
[1743241242417,5.90192425,604.47,604.07,0.28556713]
[1743241242613,5.90104172,604.46,604.07,0.61665458]
[1743241242817,5.90104172,604.45,604.08,0.28556713]
[1743241243017,3.74675606,604.44,604.08,0.28556713]
[1743241243214,2.26955267,604.43,604.08,0.28556713]
[1743241243418,2.26955267,604.42,604.08,0.28556713]
[1743241243617,2.26955267,604.41,604.08,0.28556713]
[1743241243918,1.61843825,604.7,604.08,0.28556713]
[1743241243919,1.98089742,604.4,604.08,0.28556713]
[1743241244115,0.92312655,604.39,604.08,0.28556713]
[1743241244320,1.05764531,604.4,604.08,0.28556713]
[1743241244516,0.92292416,604.39,604.08,0.28556713]
[1743241244718,2.26841301,604.38,604.08,0.28556713]
[1743241244917,2.26841301,604.37,604.08,0.28556713]
[1743241245114,2.26841301,604.36,604.08,0.28556713]
[1743241245317,0.92292416,604.35,604.08,0.28556713]
[1743241245616,0.92292416,604.34,604.08,0.28556713]
[1743241245820,0.92292416,604.33,604.08,0.28556713]
[1743241246017,2.58840852,604.65,604.08,0.28556713]
[1743241246217,7.36264384,604.64,604.08,0.28556713]
[1743241246417,1.61843825,604.65,604.08,0.28556713]
[1743241246418,7.36264384,604.63,604.08,0.28556713]
[1743241246613,3.23546424,604.65,604.08,0.28556713]
[1743241246614,6.39129113,604.62,604.08,0.28556713]
[1743241246819,6.39129113,604.61,604.08,0.28556713]
[1743241247119,6.39129113,604.6,604.08,0.28556713]
[1743241247313,6.39129113,604.59,604.08,0.28556713]
[1743241247520,6.39129113,604.58,604.08,0.28556713]
[1743241247823,6.39129113,604.57,604.08,0.28556713]
[1743241248016,6.39129113,604.56,604.08,0.28556713]
[1743241248218,6.39129113,604.55,604.08,0.28556713]
[1743241248425,6.39129113,604.54,604.08,0.28556713]
[1743241248617,6.39037593,604.53,604.08,0.28556713]
[1743241248818,6.39037593,604.52,604.08,0.28556713]
[1743241249021,6.39037593,604.51,604.08,0.28556713]
[1743241249226,6.39037593,604.5,604.08,0.28556713]
[1743241249421,6.39037593,604.49,604.08,0.28556713]
[1743241249622,6.39037593,604.48,604.08,0.28556713]
[1743241249822,6.39037593,604.47,604.08,0.28556713]
[1743241250023,5.89411475,604.46,604.08,0.28556713]
[1743241250220,5.89411475,604.45,604.08,0.28556713]
[1743241250425,5.89411475,604.44,604.08,0.28556713]
[1743241250620,5.89411475,604.43,604.08,0.28556713]
[1743241250820,5.89411475,604.42,604.08,0.28556713]
[1743241251019,5.89411475,604.41,604.08,0.28556713]
[1743241251224,5.89411475,604.4,604.08,0.28556713]
[1743241251429,5.89411475,604.39,604.08,0.28556713]
[1743241251625,5.89411475,604.38,604.08,0.28556713]
[1743241251924,5.89411475,604.37,604.08,0.28556713]
[1743241252125,6.48905352,604.36,604.08,0.28556713]
[1743241252326,3.7423772,604.35,604.08,0.28556713]
[1743241252528,0.92213124,604.34,604.08,0.28556713]
[1743241252723,0.92213124,604.33,604.08,0.28556713]
[1743241252929,0.92213124,604.32,604.08,0.28556713]
[1743241253128,1.05641397,604.34,604.08,0.28556713]
[1743241253330,0.92129832,604.33,604.08,0.28556713]
[1743241253627,2.26425935,604.32,604.07,0.33108745]
[1743241253832,2.26425935,604.31,604.07,0.33108745]
[1743241254034,0.92129832,604.3,604.07,0.33108745]
[1743241254226,1.05641397,604.3,604.08,0.28561273]
[1743241255133,1.05641397,604.3,604.09,0.33107649]
[1743241255328,0.96879936,604.72,604.09,0.33107649]
[1743241255329,0.96879936,604.72,604.1,0.28561273]
[1743241255636,6.38508184,604.71,604.11,0.33106553]
[1743241255831,9.12882406,604.7,604.12,0.28561273]
[1743241256031,6.38508184,604.69,604.13,0.33105457]
[1743241256228,6.38508184,604.68,604.14,0.28561273]
[1743241256433,6.38508184,604.67,604.14,0.28561273]
[1743241256634,6.38508184,604.66,604.14,0.28561273]
[1743241256831,6.38508184,604.65,604.14,0.28561273]
[1743241257027,6.38508184,604.64,604.14,0.28561273]
[1743241257231,6.38508184,604.63,604.15,0.28553304]
[1743241257428,6.38508184,604.62,604.14,0.28553304]
[1743241257632,6.38508184,604.61,604.14,0.28553304]
[1743241257830,6.38508184,604.6,604.14,0.28553304]
[1743241258032,5.88888758,604.59,604.14,0.28553304]
[1743241258228,5.88888758,604.58,604.14,0.28553304]
[1743241258435,5.89139185,604.57,604.14,0.28553304]
[1743241258632,5.89139185,604.56,604.14,0.28553304]
[1743241258838,5.89139185,604.55,604.14,0.28553304]
[1743241259135,3.74097386,604.54,604.14,0.28553304]
[1743241259334,3.74097386,604.53,604.14,0.28553304]
[1743241259535,3.74119669,604.52,604.14,0.28553304]
[1743241259737,3.74121485,604.51,604.14,0.28553304]
[1743241259933,3.74121485,604.5,604.14,0.28553304]
[1743241260130,3.74121485,604.49,604.14,0.28553304]
[1743241260333,5.89194384,604.48,604.14,0.28553304]
[1743241260531,3.74121485,604.47,604.14,0.28553304]
[1743241260737,3.74121485,604.46,604.14,0.28553304]
[1743241261035,1.61843825,604.77,604.14,0.28553304]
[1743241261036,3.32120541,604.45,604.14,0.28553304]
[1743241261231,2.26591994,604.44,604.14,0.28553304]
[1743241261436,2.26591994,604.43,604.14,0.28553304]
[1743241261632,2.26591994,604.42,604.14,0.28553304]
[1743241261831,2.26591994,604.41,604.14,0.28553304]
[1743241262035,2.26591994,604.4,604.14,0.28553304]
[1743241262333,0.9219087,604.39,604.14,0.28553304]
[1743241262534,0.9219087,604.38,604.14,0.28553304]
[1743241262730,0.9219087,604.37,604.14,0.28553304]
[1743241263035,1.05528547,604.38,604.14,0.28553304]
[1743241263432,1.05528547,604.36,604.14,0.28553304]
[1743241264036,0.92248239,604.35,604.14,0.28553304]
[1743241264236,0.9685332,604.67,604.14,0.28553304]
[1743241264435,0.9685332,604.65,604.14,0.28553304]
[1743241264638,6.39309086,604.64,604.13,0.33105457]
[1743241264840,6.39309086,604.63,604.14,0.28555846]
[1743241265035,7.36162406,604.62,604.14,0.28555846]
[1743241265240,6.39309086,604.61,604.14,0.28555846]
[1743241265437,6.39309086,604.6,604.14,0.28555846]
[1743241265636,6.39309086,604.59,604.14,0.28555846]
[1743241265841,4.36595182,604.62,604.14,0.28555846]
[1743241265842,6.39360421,604.58,604.14,0.28555846]
[1743241266141,6.39360421,604.57,604.14,0.28555846]
[1743241266337,6.39360421,604.56,604.14,0.28555846]
[1743241266538,6.39360421,604.55,604.14,0.28555846]
[1743241266739,6.39360421,604.54,604.14,0.28555846]
[1743241266941,2.74751357,604.55,604.14,0.28555846]
[1743241266942,5.89736865,604.53,604.14,0.28555846]
[1743241267137,5.89736865,604.52,604.14,0.28555846]
[1743241267339,5.89736865,604.51,604.14,0.28555846]
[1743241267639,5.89736865,604.5,604.14,0.28555846]
[1743241267846,5.89736865,604.49,604.14,0.28555846]
[1743241268144,2.74751357,604.53,604.13,0.33105457]
[1743241268145,5.89736865,604.48,604.13,0.33105457]
[1743241268346,3.7449585,604.47,604.14,0.28557698]
[1743241268540,2.74751357,604.48,604.14,0.28557698]
[1743241268541,3.7449585,604.46,604.14,0.28557698]
[1743241268739,2.26821871,604.45,604.14,0.28557698]
[1743241268940,2.26821871,604.44,604.14,0.28557698]
[1743241269140,2.26877873,604.43,604.14,0.28557698]
[1743241269348,2.26877873,604.42,604.14,0.28557698]
[1743241269647,2.26877873,604.41,604.14,0.28557698]
[1743241269847,1.05673599,604.43,604.13,0.33105457]
[1743241269848,2.26877873,604.4,604.13,0.33105457]
[1743241270041,2.26877873,604.39,604.15,0.28557855]
[1743241270249,0.92352239,604.38,604.16,0.28557855]
[1743241270447,0.92352239,604.37,604.14,0.28557855]
[1743241270748,1.05673599,604.36,604.15,0.28558052]
[1743241270957,1.05673599,604.36,604.14,0.28558052]
[1743241271147,1.05673599,604.36,604.15,0.28558052]
[1743241271343,1.05673599,604.36,604.14,0.28558052]
[1743241271543,2.58869757,604.7,604.14,0.28558052]
[1743241271747,6.39899396,604.69,604.14,0.28558052]
[1743241271942,6.39899396,604.68,604.14,0.28558052]
[1743241272243,1.61843825,604.64,604.14,0.28558052]
[1743241272444,6.39899396,604.63,604.14,0.28558052]
[1743241272643,6.39899396,604.62,604.14,0.28558052]
[1743241272842,6.39899396,604.61,604.14,0.28558052]
[1743241273048,6.39899396,604.6,604.14,0.28558052]
[1743241273252,6.39899396,604.59,604.14,0.28558052]
[1743241273551,5.9027324,604.58,604.14,0.28558052]
[1743241273751,2.75035857,604.58,604.14,0.28558052]
[1743241273952,5.90525509,604.57,604.14,0.28558052]
[1743241274146,2.75035857,604.58,604.14,0.28558052]
[1743241274147,5.90525509,604.56,604.14,0.28558052]
[1743241274343,5.90525509,604.55,604.14,0.28558052]
[1743241274546,5.90525509,604.54,604.14,0.28558052]
[1743241274745,5.90525509,604.53,604.14,0.28558052]
[1743241274946,5.90525509,604.52,604.15,0.28555123]
[1743241275149,9.15182928,604.51,604.14,0.28555123]
[1743241275352,6.40147071,604.5,604.14,0.28555123]
[1743241275549,5.90525509,604.49,604.13,0.33105457]
[1743241275753,2.75035857,604.49,604.14,0.28554581]
[1743241275954,5.90654268,604.48,604.3,1.23313156]
[1743241276151,5.90654268,604.47,604.31,0.28554581]
[1743241276347,2.75035857,604.49,604.31,0.28554581]
[1743241276348,5.90654268,604.46,604.31,0.28554581]
[1743241276546,5.90654268,604.45,604.31,0.28554581]
[1743241276750,5.90654268,604.44,604.31,0.28554581]
[1743241276948,3.75059713,604.43,604.31,0.28554581]
[1743241277253,2.27174718,604.42,604.31,0.28554581]
[1743241277553,0.92428122,604.41,604.31,0.28554581]
[1743241277854,0.92428122,604.4,604.31,0.28554581]
[1743241278049,1.05783022,604.41,604.31,0.28554581]
[1743241278349,0.92474533,604.4,604.31,0.28554581]
[1743241278549,1.05783022,604.4,604.31,0.28554581]
[1743241278750,0.92501336,604.39,604.31,1.51867737]
[1743241278952,1.05783022,604.4,604.32,0.28554581]
[1743241279153,0.92503122,604.39,604.32,0.28554581]
[1743241279354,0.92503122,604.38,604.32,0.28554581]
[1743241279554,0.92531163,604.37,604.32,0.28554581]
[1743241279748,1.05964635,604.38,604.32,0.28554581]
[1743241280348,0.92548684,604.37,604.32,0.28554581]
[1743241280550,1.05964635,604.37,604.32,0.28554581]
[1743241280949,1.61843825,604.65,604.32,0.28554581]
[1743241281150,6.41059095,604.64,604.26,0.28554581]
[1743241281457,6.41059095,604.63,604.27,0.28554581]
[1743241281650,6.41059095,604.62,604.26,0.28554581]
[1743241281851,3.50807668,604.61,604.27,0.28553416]
[1743241282050,6.41080256,604.6,604.28,0.28553416]
[1743241282254,2.75598904,604.62,604.26,0.28553416]
[1743241282255,6.41080256,604.59,604.26,0.28553416]
[1743241282558,9.1667916,604.58,604.27,0.28553416]
[1743241282756,6.41080256,604.57,604.26,0.28553416]
[1743241282956,5.91461404,604.56,604.27,0.28553416]
[1743241283156,2.27485155,604.55,604.27,0.28553416]
[1743241283358,2.27485155,604.54,604.28,0.28553416]
[1743241283565,2.275611,604.53,604.26,0.28553416]
[1743241283759,0.92559129,604.52,604.26,0.28553416]
[1743241283956,0.92559129,604.51,604.28,1.23313156]
[1743241284159,0.92600575,604.5,604.29,0.28553416]
[1743241284462,1.05999578,604.51,604.29,0.28553416]
[1743241284760,0.92612375,604.5,604.29,0.28553416]
[1743241285065,1.05999578,604.5,604.29,0.28553416]
[1743241285260,1.05999578,604.5,604.28,1.23313156]
[1743241285460,1.05999578,604.49,604.29,0.28546819]
[1743241286262,1.61843825,604.83,604.29,0.28546819]
[1743241286462,6.41593802,604.82,604.29,0.28546819]
[1743241286663,6.41593802,604.81,604.23,0.28546819]
[1743241286865,6.41593802,604.8,604.24,0.28546819]
[1743241287065,6.41593802,604.79,604.23,0.28546819]
[1743241287366,0.97240432,604.77,604.24,0.28546819]
[1743241287565,6.41593802,604.76,604.23,0.28546819]
[1743241287760,6.41593802,604.75,604.24,0.28546819]
[1743241287964,6.41593802,604.74,604.23,0.28546819]
[1743241288158,6.41593802,604.73,604.24,0.28546819]
[1743241288364,6.41593802,604.72,604.23,0.28546819]
[1743241288560,2.75812597,604.74,604.22,1.23313156]
[1743241288561,6.41593802,604.71,604.24,0.28546819]
[1743241288765,6.41593802,604.71,604.13,0.33105457]
[1743241288766,6.41593802,604.7,604.28,1.23313156]
[1743241288965,6.41593802,604.69,604.29,0.6164351]